bitfinex/quotes_ETHUSD_20250924
["timestamp","ask_amount","ask_price","bid_price","bid_amount"]
[1758752409258,9.78512483,4165.5,4165.4,0.002]
[1758752409458,5.52072982,4165.4,4165.3,0.002]
[1758752409658,5.52072982,4165.4,4164.5,0.002]
[1758752409659,2.40096038,4165.0,4164.5,0.002]
[1758752409863,3.7817,4165.4,4164.5,0.002]
[1758752409864,3.0,4164.8,4164.5,0.002]
[1758752410201,5.40119099,4164.6,4164.5,0.002]
[1758752411082,0.12,4164.5,4164.1,0.02]
[1758752411256,4.249,4164.4,4164.1,0.02]
[1758752411460,3.0,4164.3,4164.1,0.02]
[1758752411659,3.0,4164.3,4162.4,2.40241941]
[1758752411660,3.12,4164.1,4163.2,0.2379]
[1758752411863,5.4016036,4163.9,4163.2,0.2379]
[1758752412054,3.0,4163.7,4163.3,14.5]
[1758752412254,3.0,4163.5,4163.3,15.1929]
[1758752412483,7.008,4163.4,4163.3,14.9635]
[1758752412689,7.008,4163.4,4163.3,0.4635]
[1758752413048,3.0,4163.4,4163.3,0.6929]
[1758752413348,0.12,4163.3,4163.2,14.5]
[1758752413548,4.128,4163.3,4163.2,14.5]
[1758752413748,4.128,4163.3,4163.1,2.42204656]
[1758752413971,7.128,4163.3,4163.2,2.63139846]
[1758752414187,7.128,4163.3,4163.2,0.2294]
[1758752415764,3.0,4163.2,4163.1,14.52]
[1758752415970,4.128,4163.3,4163.1,14.52]
[1758752416289,3.0,4163.2,4163.1,14.52]
[1758752416916,3.0,4163.2,4163.1,17.61495616]
[1758752419815,3.0,4163.2,4163.1,17.61695616]
[1758752420018,3.0,4163.2,4163.1,3.11695616]
[1758752420494,3.0,4163.2,4163.1,17.61695616]
[1758752422622,3.0,4163.2,4163.1,15.2149]
[1758752423119,3.0,4163.2,4163.1,17.61695616]
[1758752424028,3.0,4163.2,4163.1,2.42405616]
[1758752424228,3.2409,4163.2,4163.1,0.022]
[1758752425808,0.001,4164.1,4163.1,0.7149]
[1758752426018,4.009,4163.9,4163.5,2.40177474]
[1758752426222,0.001,4164.1,4163.6,0.6929]
[1758752426420,0.001,4164.1,4163.9,2.40159465]
[1758752426634,1.52,4164.0,4163.9,2.40159465]
[1758752426803,1.52,4164.0,4163.9,3.09449465]
[1758752427736,0.03,4164.0,4163.9,3.09449465]
[1758752430098,0.03,4164.0,4163.9,17.59449465]
[1758752430842,0.03,4164.0,4163.9,19.59411512]
[1758752431435,0.03,4164.0,4163.9,17.59449465]
[1758752436548,0.03,4164.0,4163.9,21.60349465]
[1758752440475,0.03,4164.0,4163.9,22.39549465]
[1758752440640,0.03,4164.0,4163.9,22.51549465]
[1758752446390,0.03,4164.0,4163.9,22.51449465]
[1758752446591,0.03,4164.0,4163.9,24.9057808]
[1758752447205,0.038,4164.0,4163.9,24.9057808]
[1758752449002,0.038,4164.0,4163.9,26.9067808]
[1758752449915,0.038,4164.0,4163.9,22.8987808]
[1758752450070,0.038,4164.0,4163.9,23.03059465]
[1758752452120,0.038,4164.0,4163.9,17.02159465]
[1758752452406,0.038,4164.0,4163.9,20.90959465]
[1758752454428,0.038,4164.0,4163.9,21.58499465]
[1758752456233,0.038,4164.0,4163.9,21.13849465]
[1758752458132,0.038,4164.0,4163.9,20.90959465]
[1758752460234,0.4587,4164.0,4163.9,16.90159465]
[1758752460437,0.6914,4164.0,4163.9,20.90959465]
[1758752461640,0.2707,4164.0,4163.9,20.90959465]
[1758752462252,0.6914,4164.0,4163.9,20.90959465]
[1758752462620,0.2707,4164.0,4163.9,20.90959465]
[1758752463321,0.2707,4164.0,4163.9,6.40959465]
[1758752463935,0.2707,4164.0,4163.9,20.90959465]
[1758752464136,0.2707,4164.0,4163.9,18.508]
[1758752464424,0.2707,4164.0,4163.9,14.5]
[1758752464425,0.6914,4164.0,4163.9,14.5]
[1758752464751,0.6914,4164.0,4163.8,0.002]
[1758752464752,3.0,4163.9,4163.8,0.002]
[1758752465115,0.2475,4163.9,4163.8,0.002]
[1758752465323,0.6682,4163.9,4163.8,0.002]
[1758752465748,3.6682,4163.9,4163.8,0.002]
[1758752466924,6.06979465,4163.9,4163.8,0.002]
[1758752467820,3.12,4163.8,4163.1,0.022]
[1758752470066,3.6682,4162.7,4162.6,0.002]
[1758752470758,3.07048697,4162.7,4162.6,0.002]
[1758752471277,0.6682,4162.7,4162.6,0.002]
[1758752471472,6.07048697,4162.7,4162.6,0.002]
[1758752472331,10.07948697,4162.7,4162.6,0.002]
[1758752473468,3.0,4162.6,4162.1,0.022]
[1758752473635,2.001,4162.5,4161.7,0.002]
[1758752473840,2.40270314,4162.0,4161.7,0.002]
[1758752474037,3.0,4161.8,4161.7,0.002]
[1758752474461,2.40233223,4162.7,4161.8,2.40279699]
[1758752474631,2.40233223,4162.7,4161.7,0.7035]
[1758752474632,3.0,4162.5,4161.9,3.10424331]
[1758752474828,0.2446,4162.8,4161.9,0.7015]
[1758752475035,4.009,4162.7,4162.0,15.2015]
[1758752475236,3.0,4162.6,4162.0,17.60416334]
[1758752475457,3.0,4162.6,4162.2,2.40257147]
[1758752475966,3.0,4162.6,4162.3,2.40251318]
[1758752476167,2.001,4162.8,4162.5,2.4024024]
[1758752476378,4.009,4163.3,4162.9,2.40211412]
[1758752476679,0.72253726,4163.6,4162.9,0.4675]
[1758752476860,3.0,4163.2,4163.0,2.63607332]
[1758752477067,3.0,4163.2,4163.0,3.10357332]
[1758752477263,3.0,4163.2,4163.1,14.5]
[1758752477949,3.2446,4163.2,4163.1,14.5]
[1758752478149,4.04197169,4163.2,4163.1,14.5]
[1758752478575,3.62127169,4163.2,4163.1,14.5]
[1758752479092,3.62127169,4163.2,4162.6,2.40232862]
[1758752479402,3.62127169,4163.2,4162.7,14.5]
[1758752479693,0.2446,4163.1,4162.7,14.5]
[1758752479896,0.6653,4163.1,4162.7,14.5]
[1758752480101,3.37667169,4163.2,4162.7,14.5]
[1758752480613,3.62127169,4163.2,4162.7,14.5]
[1758752481350,3.62127169,4163.2,4162.6,2.40233684]
[1758752481551,3.62127169,4163.2,4162.5,2.40239154]
[1758752481752,3.62127169,4163.2,4162.4,0.234]
[1758752481947,3.37667169,4163.2,4162.4,0.234]
[1758752482154,3.37667169,4163.2,4162.6,2.40234468]
[1758752482450,3.37667169,4163.2,4162.9,2.40216317]
[1758752482694,3.37667169,4163.2,4163.0,0.234]
[1758752482895,0.37667169,4163.2,4163.0,0.7015]
[1758752483100,3.0,4163.2,4162.8,2.40220978]
[1758752483326,3.0,4163.2,4163.1,0.7015]
[1758752483623,3.0,4163.2,4163.1,3.10355616]
[1758752483779,3.0,4163.2,4163.1,0.7015]
[1758752483974,3.0,4163.2,4163.1,3.10355616]
[1758752484180,0.02,4163.9,4163.3,2.40193997]
[1758752484509,0.12,4163.3,4163.2,3.10349134]
[1758752484675,0.12,4163.3,4163.2,0.7015]
[1758752485509,4.129,4163.3,4162.9,14.5]
[1758752485711,6.0673053,4163.2,4162.9,14.5]
[1758752486026,3.0,4163.0,4162.9,14.5]
[1758752486191,3.2446,4163.0,4162.9,14.5]
[1758752486688,2.64671386,4163.0,4162.9,14.5]
[1758752486892,3.06741386,4163.0,4162.9,14.5]
[1758752487303,1.04199278,4163.0,4162.9,14.5]
[1758752487830,0.62129278,4163.0,4162.5,2.40239273]
[1758752487978,2.7788272,4163.0,4162.3,2.40247553]
[1758752488173,0.2446,4162.9,4162.4,14.5]
[1758752488890,0.2446,4162.9,4162.4,16.90245218]
[1758752489294,0.2446,4162.9,4162.5,2.40239639]
[1758752489593,0.2446,4162.9,4162.4,16.90244382]
[1758752489793,0.2446,4162.9,4162.5,2.40239741]
[1758752490211,3.37669278,4163.0,4162.4,17.13644629]
[1758752490413,3.37669278,4163.0,4162.4,14.734]
[1758752490706,3.37669278,4163.0,4162.4,17.1364503]
[1758752490910,3.37669278,4163.0,4162.4,14.734]
[1758752491121,3.37669278,4163.0,4162.4,17.13640637]
[1758752491295,2.77882375,4163.0,4162.4,14.734]
[1758752491709,3.37669278,4163.0,4162.4,14.734]
[1758752491954,0.37669278,4163.0,4162.6,2.40233899]
[1758752492131,4.38969278,4163.0,4162.4,14.734]
[1758752492321,4.38969278,4163.0,4162.5,0.234]
[1758752492512,4.38969278,4163.0,4162.6,0.234]
[1758752492826,4.38969278,4163.0,4162.6,2.63628902]
[1758752493027,4.38969278,4163.0,4162.7,2.4022838]
[1758752493225,4.38969278,4163.0,4162.8,2.40222063]
[1758752493430,4.38969278,4163.0,4162.8,3.10372063]
[1758752493727,4.38969278,4163.0,4162.6,2.40232678]
[1758752493929,4.38969278,4163.0,4162.6,3.10382678]
[1758752494485,4.38969278,4163.0,4162.6,0.4675]
[1758752494681,4.38969278,4163.0,4162.7,0.234]
[1758752494932,4.38969278,4163.0,4162.8,2.40221021]
[1758752495223,4.38969278,4163.0,4162.6,0.4675]
[1758752495397,4.38969278,4163.0,4162.8,2.40222006]
[1758752495931,4.38969278,4163.0,4162.7,2.40227732]
[1758752495932,0.12,4162.8,4162.7,2.40227732]
[1758752496326,0.12,4162.8,4162.7,2.63627732]
[1758752498127,0.12,4162.8,4162.7,3.10377732]
[1758752499211,0.12,4162.8,4162.7,3.65439441]
[1758752499410,0.001,4163.2,4163.1,2.40205616]
[1758752499666,0.001,4163.2,4163.1,20.91305616]
[1758752499816,0.001,4163.2,4163.1,21.61455616]
[1758752503789,0.001,4163.2,4163.1,22.52655616]
[1758752503943,0.001,4163.2,4163.1,24.91784231]
[1758752506040,0.001,4163.2,4163.1,24.91884231]
[1758752506245,0.001,4163.2,4163.1,20.90684231]
[1758752506481,0.001,4163.2,4163.1,17.72355616]
[1758752506640,0.001,4163.2,4163.1,21.73455616]
[1758752510179,0.001,4163.2,4163.1,22.52655616]
[1758752517618,0.001,4163.2,4163.1,16.90205616]
[1758752518111,0.2359,4163.2,4163.1,20.91405616]
[1758752518312,0.001,4163.2,4163.1,20.91405616]
[1758752518528,0.001,4163.2,4163.1,21.72789366]
[1758752519777,0.001,4163.2,4163.1,22.40059366]
[1758752520378,0.001,4163.2,4163.1,22.16889366]
[1758752520577,0.001,4163.2,4163.1,22.39439366]
[1758752520790,0.001,4163.2,4163.1,23.18639366]
[1758752523987,1e-08,4163.9,4163.8,3.19365233]
[1758752524195,1e-08,4163.9,4163.8,9.52601756]
[1758752524529,1e-08,4163.9,4163.8,10.18791756]
[1758752524709,1e-08,4163.9,4163.8,24.68791756]
[1758752527604,1e-08,4163.9,4163.8,24.80791756]
[1758752528139,1e-08,4163.9,4163.8,18.79491756]
[1758752528325,1e-08,4163.9,4163.8,24.80691756]
[1758752531033,1e-08,4163.9,4163.8,24.80591756]
[1758752536743,1e-08,4163.9,4163.8,32.85027188]
[1758752536977,1e-08,4163.9,4163.8,26.83927188]
[1758752537200,1e-08,4163.9,4163.8,32.84727188]
[1758752537364,1e-08,4163.9,4163.8,24.68291756]
[1758752537858,1e-08,4163.9,4163.8,18.67491756]
[1758752538065,1e-08,4163.9,4163.8,24.68291756]
[1758752538263,1e-08,4163.9,4163.8,18.23851756]
[1758752538495,1e-08,4163.9,4163.8,24.02101756]
[1758752538701,1e-08,4163.9,4163.8,24.70571756]
[1758752541298,1e-08,4163.9,4163.8,24.24611756]
[1758752541492,1e-08,4163.9,4163.8,18.01301756]
[1758752541675,1e-08,4163.9,4163.8,24.02101756]
[1758752542394,1e-08,4163.9,4163.8,24.70571756]
[1758752546806,1e-08,4163.9,4163.8,24.82571756]
[1758752549583,1e-08,4163.9,4163.8,18.81771756]
[1758752549789,1e-08,4163.9,4163.8,24.36511756]
[1758752550078,0.001,4164.6,4164.5,3.19324864]
[1758752550399,0.001,4164.6,4164.5,7.75971148]
[1758752550603,0.4217,4164.6,4164.5,9.75971148]
[1758752550808,0.4217,4164.6,4164.5,24.25971148]
[1758752551367,0.001,4164.6,4164.5,24.25971148]
[1758752552530,0.4217,4164.6,4164.5,18.25271148]
[1758752552700,0.4217,4164.6,4164.5,24.25971148]
[1758752553336,0.001,4164.6,4164.5,24.25971148]
[1758752556436,0.001,4164.6,4164.5,18.25271148]
[1758752556643,0.001,4164.6,4164.5,24.25971148]
[1758752558531,0.001,4164.6,4164.5,24.48481148]
[1758752559341,0.001,4164.6,4164.5,24.25971148]
[1758752560110,0.001,4164.6,4164.5,24.37971148]
[1758752565939,0.001,4164.6,4164.5,18.37271148]
[1758752566262,0.001,4164.6,4164.5,24.37971148]
[1758752567968,0.4838,4164.6,4164.5,21.82024864]
[1758752568950,0.4838,4164.6,4164.5,16.90124864]
[1758752569139,0.4838,4164.6,4164.5,20.90824864]
[1758752573257,0.001,4164.6,4164.5,20.90824864]
[1758752573459,0.001,4164.6,4164.5,21.70024864]
[1758752573659,0.001,4164.6,4164.5,24.77193479]
[1758752578848,0.001,4164.6,4164.5,24.89193479]
[1758752582585,0.001,4164.6,4164.5,24.21153479]
[1758752582887,0.001,4164.6,4164.5,24.89833479]
[1758752583589,0.001,4164.6,4164.5,20.89133479]
[1758752583891,0.001,4164.6,4164.5,26.89833479]
[1758752584503,1e-08,4165.0,4164.9,3.19301803]
[1758752584695,1e-08,4165.0,4164.9,14.27736044]
[1758752584984,1e-08,4165.0,4164.9,15.06015026]
[1758752585184,1e-08,4165.0,4164.9,22.50681803]
[1758752593076,1e-08,4165.0,4164.9,17.81301803]
[1758752593413,0.48280001,4165.0,4164.9,21.81901803]
[1758752593630,0.48280001,4165.0,4164.9,17.02101803]
[1758752593933,0.48280001,4165.0,4164.9,21.02701803]
[1758752596335,1e-08,4165.0,4164.9,21.02701803]
[1758752596714,1e-08,4165.0,4164.9,17.02101803]
[1758752597034,1e-08,4165.0,4164.9,21.02701803]
[1758752597263,0.48280001,4165.0,4164.9,21.02701803]
[1758752597909,1e-08,4165.0,4164.9,21.02701803]
[1758752598427,0.42070001,4165.0,4164.9,21.02701803]
[1758752598631,1e-08,4165.0,4164.9,21.02701803]
[1758752601219,0.48280001,4165.0,4164.9,16.90101803]
[1758752601535,0.48280001,4165.0,4164.9,20.90701803]
[1758752603924,0.48280001,4165.0,4164.9,14.5]
[1758752608441,0.48280001,4165.0,4164.9,16.90101803]
[1758752608654,1e-08,4165.0,4164.9,16.90101803]
[1758752608861,1e-08,4165.0,4164.9,20.90701803]
[1758752609048,1e-08,4165.0,4164.9,22.72250962]
[1758752609236,1e-08,4165.0,4164.9,21.14401803]
[1758752609430,1e-08,4165.0,4164.9,20.90701803]
[1758752610471,1e-08,4165.0,4164.9,21.14401803]
[1758752611551,1e-08,4165.0,4164.9,20.90701803]
[1758752614969,1e-08,4165.0,4164.9,16.90101803]
[1758752615175,1e-08,4165.0,4164.9,20.90701803]
[1758752618136,1e-08,4165.0,4164.9,21.59221803]
[1758752619741,1e-08,4165.0,4164.9,24.77550418]
[1758752619941,1e-08,4165.0,4164.9,24.89550418]
[1758752626953,1e-08,4165.0,4164.9,20.20430418]
[1758752627158,1e-08,4165.0,4164.9,26.43560418]
[1758752627358,1e-08,4165.0,4164.9,26.88890418]
[1758752627560,1e-08,4165.0,4164.9,24.88790418]
[1758752627788,1e-08,4165.0,4164.9,26.88790418]
[1758752628288,1e-08,4165.0,4164.9,26.20930418]
[1758752628791,1e-08,4165.0,4164.9,26.43460418]
[1758752629087,1e-08,4165.0,4164.9,26.88790418]
[1758752630951,1e-08,4165.0,4164.9,26.76790418]
[1758752631161,1e-08,4165.0,4164.9,26.88790418]
[1758752637775,1e-08,4165.0,4164.9,26.20930418]
[1758752637969,1e-08,4165.0,4164.9,20.20430418]
[1758752638169,1e-08,4165.0,4164.9,26.20930418]
[1758752638370,1e-08,4165.0,4164.9,26.88790418]
[1758752640818,1e-08,4165.0,4164.9,26.98414212]
[1758752645114,1e-08,4165.0,4164.9,19.41230418]
[1758752645318,1e-08,4165.0,4164.9,25.41730418]
[1758752645520,1e-08,4165.0,4164.9,26.20930418]
[1758752645857,0.48280001,4165.0,4164.9,17.02101803]
[1758752646011,0.48280001,4165.0,4164.9,21.02501803]
[1758752647166,0.48280001,4165.0,4164.9,20.90501803]
[1758752648190,0.48280001,4165.0,4164.9,14.5]
[1758752649438,3.48280001,4165.0,4164.9,14.5]
[1758752649632,3.48280001,4165.0,4164.8,4.007]
[1758752649633,2.40101803,4164.9,4164.8,0.002]
[1758752649897,2.40101803,4164.9,4164.4,0.002]
[1758752649898,2.52112648,4164.8,4164.4,0.002]
[1758752650071,2.88392648,4164.8,4164.4,0.002]
[1758752650578,2.40124106,4164.6,4164.4,0.002]
[1758752650787,2.88389181,4164.8,4164.4,0.002]
[1758752650956,2.40124864,4164.5,4164.4,0.002]
[1758752651143,5.88404864,4164.5,4164.4,0.002]
[1758752652879,2.40136397,4164.3,4164.2,14.5]
[1758752653084,2.40136397,4164.3,4164.1,0.002]
[1758752653085,5.40142164,4164.2,4164.1,0.002]
[1758752653578,5.40147931,4164.1,4164.0,0.002]
[1758752653789,2.40171001,4163.7,4163.6,0.002]
[1758752653989,7.40171001,4163.7,4163.6,0.002]
[1758752654197,7.88451001,4163.7,4163.6,0.002]
[1758752654856,11.88951001,4163.7,4163.6,0.002]
[1758752655391,2.40194076,4163.3,4163.2,14.502]
[1758752655693,3.4828,4163.3,4163.2,14.502]
[1758752657109,3.0,4163.3,4163.2,14.502]
[1758752657308,3.0,4163.3,4163.2,17.15259846]
[1758752657454,3.0,4163.3,4163.2,16.90399846]
[1758752658065,3.0,4163.3,4163.2,17.15259846]
[1758752658268,3.0,4163.3,4163.2,16.90399846]
[1758752658758,3.0,4163.3,4163.2,17.15259846]
[1758752658957,3.0,4163.3,4163.2,16.90399846]
[1758752660386,3.0,4163.3,4163.2,17.15259846]
[1758752660588,3.0,4163.3,4163.2,21.63189846]
[1758752661498,3.0,4163.3,4163.2,20.90999846]
[1758752664161,3.0,4163.3,4163.2,18.508]
[1758752664392,3.0,4163.3,4163.2,16.90399846]
[1758752664594,3.0,4163.3,4163.2,14.502]
[1758752664794,3.4828,4163.3,4163.2,14.502]
[1758752664994,3.0,4163.3,4163.2,14.502]
[1758752665484,3.4828,4163.3,4163.2,14.502]
[1758752665683,5.88474076,4163.3,4163.2,14.502]
[1758752666563,3.4828,4163.3,4163.2,14.502]
[1758752666762,5.88474076,4163.3,4163.2,14.502]
[1758752666968,3.4828,4163.3,4163.2,14.502]
[1758752667784,5.88474076,4163.3,4163.2,14.502]
[1758752667979,3.4828,4163.3,4163.2,14.502]
[1758752668184,3.0,4163.3,4163.2,14.502]
[1758752669188,3.37664867,4163.3,4163.2,14.502]
[1758752671910,5.77858943,4163.3,4163.2,14.502]
[1758752672075,6.19928943,4163.3,4163.2,14.502]
[1758752672279,3.85944867,4163.3,4163.2,14.502]
[1758752672803,3.37664867,4163.3,4163.2,14.502]
[1758752674383,7.38364867,4163.3,4163.2,14.502]
[1758752684620,7.38364867,4163.3,4163.2,0.002]
[1758752686130,9.78558943,4163.3,4163.2,0.002]
[1758752686660,7.38364867,4163.3,4163.2,0.002]
[1758752687224,7.80434867,4163.3,4163.2,0.002]
[1758752687482,7.86644867,4163.3,4163.2,0.002]
[1758752687664,7.38364867,4163.3,4163.2,0.002]
[1758752687863,3.37664867,4163.3,4163.2,0.002]
[1758752688050,0.001,4163.6,4163.5,2.40182538]
[1758752688360,0.001,4163.6,4163.5,7.08902538]
[1758752688361,0.121,4163.6,4163.5,7.08902538]
[1758752688566,0.001,4163.6,4163.5,7.08902538]
[1758752688963,0.001,4163.6,4163.5,21.58902538]
[1758752689126,0.001,4163.6,4163.5,24.10031153]
[1758752689327,0.001,4163.6,4163.5,24.89231153]
[1758752689977,0.001,4163.6,4163.5,31.95371093]
[1758752691251,0.001,4163.6,4163.5,24.89231153]
[1758752691454,0.001,4163.6,4163.5,20.88531153]
[1758752691642,0.001,4163.6,4163.5,26.89231153]
[1758752702889,0.001,4163.6,4163.5,26.89131153]
[1758752703693,0.001,4163.6,4163.5,24.45331153]
[1758752703865,0.001,4163.6,4163.5,26.88791153]
[1758752709158,0.001,4163.6,4163.5,20.44831153]
[1758752709359,0.001,4163.6,4163.5,16.90182538]
[1758752709565,0.6038,4163.6,4163.5,18.505]
[1758752711099,0.6038,4163.6,4163.5,14.5]
[1758752711462,0.6038,4163.6,4163.2,4.007]
[1758752713987,0.4828,4163.4,4163.3,14.5]
[1758752715585,0.4828,4163.4,4163.3,16.90194076]
[1758752715899,0.4828,4163.4,4163.3,14.5]
[1758752717279,0.4828,4163.4,4163.3,16.90194076]
[1758752717802,0.4828,4163.4,4163.3,14.5]
[1758752718002,0.4828,4163.4,4163.3,16.90194076]
[1758752718298,0.4828,4163.4,4163.3,14.5]
[1758752720769,5.40194076,4163.3,4163.2,0.002]
[1758752720971,3.4828,4163.4,4163.2,0.002]
[1758752720972,2.8846904,4163.4,4163.2,0.002]
[1758752721207,0.4828,4163.3,4163.2,0.002]
[1758752721920,2.88474076,4163.3,4163.2,0.002]
[1758752722502,0.4828,4163.3,4163.2,0.002]
[1758752722903,2.88474076,4163.3,4163.2,0.002]
[1758752723308,0.4828,4163.3,4163.2,0.002]
[1758752725301,3.26139703,4163.3,4163.2,0.002]
[1758752725797,0.85945627,4163.3,4163.2,0.002]
[1758752726410,0.37665627,4163.3,4163.2,0.002]
[1758752726608,0.37665627,4163.3,4163.2,2.40399846]
[1758752726930,0.37665627,4163.3,4163.2,3.12029846]
[1758752727428,0.001,4163.6,4163.5,2.40182538]
[1758752727928,0.001,4163.6,4163.5,3.11812538]
[1758752728795,0.001,4163.6,4163.5,17.61812538]
[1758752729533,0.001,4163.6,4163.5,14.5]
[1758752731330,2.4027677,4163.6,4163.5,14.5]
[1758752731529,5.8234677,4163.6,4163.5,14.5]
[1758752731733,5.8855677,4163.6,4163.5,14.5]
[1758752733523,3.4838,4163.6,4163.5,14.5]
[1758752733724,3.4217,4163.6,4163.5,14.5]
[1758752733936,5.8234677,4163.6,4163.5,14.5]
[1758752735520,5.4027677,4163.6,4163.5,14.5]
[1758752736464,0.12,4163.5,4163.3,0.002]
[1758752736645,2.5218371,4163.5,4163.3,0.002]
[1758752737146,0.49663938,4163.5,4163.3,0.002]
[1758752737821,2.89848524,4163.5,4163.3,0.002]
[1758752738217,2.8984788,4163.5,4163.3,0.002]
[1758752738657,0.49663938,4163.5,4163.3,0.002]
[1758752740543,2.89846763,4163.5,4163.3,0.002]
[1758752740743,0.49663938,4163.5,4163.3,0.002]
[1758752741320,0.12,4163.5,4163.4,3.11818307]
[1758752741532,0.12,4163.5,4163.4,7.12318307]
[1758752741754,0.001,4163.6,4163.5,2.40182538]
[1758752741940,0.001,4163.6,4163.5,17.61134363]
[1758752742139,0.001,4163.6,4163.5,17.58732538]
[1758752744571,0.001,4163.6,4163.5,18.49932538]
[1758752745338,0.001,4163.6,4163.5,18.37932538]
[1758752745577,0.001,4163.6,4163.5,20.89061153]
[1758752745875,0.001,4163.6,4163.5,29.06186595]
[1758752750988,0.001,4163.6,4163.5,35.06686595]
[1758752751658,1e-08,4165.0,4164.9,2.40101803]
[1758752751861,1e-08,4165.0,4164.9,6.40501803]
[1758752752167,1e-08,4165.0,4164.9,8.17122919]
[1758752752367,1e-08,4165.0,4164.9,23.46322919]
[1758752761660,1e-08,4165.0,4164.9,23.58322919]
[1758752766735,1e-08,4165.0,4164.9,17.02101803]
[1758752766925,0.48280001,4165.0,4164.9,20.90401803]
[1758752767128,1e-08,4165.0,4164.9,20.90401803]
[1758752767429,0.48280001,4165.0,4164.9,20.90401803]
[1758752768000,0.48280001,4165.0,4164.9,14.5]
[1758752768213,0.48280001,4165.0,4164.9,18.503]
[1758752769220,0.48280001,4165.0,4164.9,20.90401803]
[1758752769397,0.48280001,4165.0,4164.9,18.503]
[1758752771048,0.48280001,4165.0,4164.9,20.90401803]
[1758752771233,1e-08,4165.0,4164.9,20.90401803]
[1758752771942,0.42070001,4165.0,4164.9,18.503]
[1758752772107,0.48280001,4165.0,4164.9,18.503]
[1758752773644,0.48280001,4165.0,4164.9,20.90401803]
[1758752773847,0.48280001,4165.0,4164.9,14.5]
[1758752774046,0.48280001,4165.0,4164.9,18.503]
[1758752775317,1e-08,4165.0,4164.9,20.90401803]
[1758752776225,1e-08,4165.0,4164.9,18.503]
[1758752776431,1e-08,4165.0,4164.9,20.90401803]
[1758752777518,1e-08,4165.0,4164.9,18.503]
[1758752777728,0.42070001,4165.0,4164.9,18.503]
[1758752778735,0.42070001,4165.0,4164.9,20.90401803]
[1758752779047,1e-08,4165.0,4164.9,20.90401803]
[1758752779566,0.42070001,4165.0,4164.9,18.503]
[1758752779761,0.48280001,4165.0,4164.9,18.503]
[1758752779967,0.42070001,4165.0,4164.9,20.90401803]
[1758752780162,1e-08,4165.0,4164.9,20.90401803]
[1758752780343,1e-08,4165.0,4164.9,18.503]
[1758752780944,0.48280001,4165.0,4164.9,18.503]
[1758752781142,0.48280001,4165.0,4164.9,14.5]
[1758752784871,0.42070001,4165.0,4164.9,14.5]
[1758752785173,1e-08,4165.0,4164.9,14.5]
[1758752786562,0.42070001,4165.0,4164.9,14.5]
[1758752787996,1e-08,4165.0,4164.9,14.5]
[1758752788599,0.42070001,4165.0,4164.9,14.5]
[1758752789196,1e-08,4165.0,4164.9,14.5]
[1758752790398,0.42070001,4165.0,4164.9,14.5]
[1758752790605,0.48280001,4165.0,4164.9,14.5]
[1758752790896,3.48280001,4165.0,4164.5,0.002]
[1758752791058,2.40119099,4164.6,4164.5,0.002]
[1758752791461,5.88399099,4164.6,4164.5,0.002]
[1758752791795,2.40142164,4164.2,4164.0,0.002]
[1758752792172,3.4828,4164.1,4164.0,0.002]
[1758752792876,2.88427931,4164.1,4164.0,0.002]
[1758752793815,2.88427931,4164.1,4163.6,0.002]
[1758752794010,2.40171001,4163.7,4163.6,0.002]
[1758752794164,5.40171001,4163.7,4163.6,0.002]
[1758752794365,5.88451001,4163.7,4163.6,0.002]
[1758752795187,5.82241001,4163.7,4163.6,0.002]
[1758752795390,2.40177712,4163.6,4163.1,0.022]
[1758752795712,5.40205616,4163.1,4162.7,0.002]
[1758752796004,2.40228697,4162.7,4162.2,14.5]
[1758752796189,6.40528697,4162.7,4162.2,14.5]
[1758752796395,9.40528697,4162.7,4162.2,14.5]
[1758752796711,9.88808697,4162.7,4162.2,14.5]
[1758752797567,10.01169831,4162.7,4162.2,14.5]
[1758752798882,10.01169831,4162.7,4161.8,0.248]
[1758752799294,10.01169831,4162.7,4161.8,0.441]
[1758752799571,10.01169831,4162.7,4162.1,14.52]
[1758752799770,9.94959831,4162.7,4162.1,14.52]
[1758752800109,9.94959831,4162.7,4162.1,0.02]
[1758752800315,10.01169831,4162.7,4162.1,0.02]
[1758752801304,9.94959831,4162.7,4162.1,0.02]
[1758752801512,10.01169831,4162.7,4162.1,0.02]
[1758752803780,10.01169831,4162.7,4162.1,14.52]
[1758752804287,9.52889831,4162.7,4162.1,14.52]
[1758752805596,9.52889831,4162.7,4162.2,0.458]
[1758752805797,9.52889831,4162.7,4162.2,0.7057]
[1758752806821,9.52889831,4162.7,4162.2,0.2477]
[1758752807325,9.9056395,4162.7,4162.2,0.2477]
[1758752807621,10.3263395,4162.7,4162.1,14.52]
[1758752809089,10.3263395,4162.7,4162.1,0.02]
[1758752809090,9.9056395,4162.7,4162.1,0.02]
[1758752809293,2.40257556,4162.2,4162.1,0.02]
[1758752809489,6.40757556,4162.2,4162.1,0.02]
[1758752809697,9.40757556,4162.2,4162.1,0.02]
[1758752809994,7.38175859,4162.2,4162.1,0.02]
[1758752810716,9.78433415,4162.2,4162.1,0.02]
[1758752810917,7.38175859,4162.2,4162.1,0.02]
[1758752811325,7.38175859,4162.2,4162.1,0.7257]
[1758752813149,7.38175859,4162.2,4162.1,15.2257]
[1758752813631,7.38175859,4162.2,4162.1,14.52]
[1758752813833,7.38175859,4162.2,4162.1,15.2257]
[1758752814533,3.37675859,4162.2,4162.1,15.2257]
[1758752814894,3.37675859,4162.2,4162.1,14.52]
[1758752815096,3.37675859,4162.2,4162.1,15.2257]
[1758752815959,3.37675859,4162.2,4162.1,15.2277]